fUST/lending_fUST_20240817
["ID","MTS","AMOUNT","RATE_DAILY","PERIOD"]
[335104005,1723828039771,-198.619222,0.00273973,120]
[335104006,1723828039798,-198.619222,0.00273973,120]
[335104007,1723828039825,-198.619222,0.00273973,120]
[335104008,1723828039949,-198.619222,0.00273973,120]
[335104009,1723828039976,-198.619222,0.00273973,120]
[335104010,1723828039998,-198.619222,0.00273973,120]
[335104011,1723828040021,-198.619222,0.00273973,120]
[335104012,1723828040044,-198.619222,0.00273973,120]
[335104013,1723828040066,-198.619222,0.00273973,120]
[335104014,1723828040088,-198.619222,0.00273973,120]
[335104015,1723828040109,-198.619222,0.00273973,120]
[335104016,1723828040129,-198.619222,0.00273973,120]
[335104017,1723828040150,-198.619222,0.00273973,120]
[335104018,1723828040171,-198.619222,0.00273973,120]
[335104019,1723828040192,-198.619222,0.00273973,120]
[335104020,1723828040214,-198.619222,0.00273973,120]
[335104021,1723828040234,-198.619222,0.00273973,120]
[335104022,1723828040255,-198.619222,0.00273973,120]
[335104023,1723828040276,-151.0,0.00273973,120]
[335104024,1723828040301,-151.0,0.00273973,120]
[335104025,1723828040322,-151.0,0.00273973,120]
[335104026,1723828040344,-151.0,0.00273973,120]
[335104027,1723828040366,-151.0,0.00273973,120]
[335104028,1723828040392,-151.0,0.00273973,120]
[335104029,1723828040413,-232.91715,0.00273973,120]
[335104030,1723828040434,-151.0,0.00273973,120]
[335104031,1723828040455,-151.0,0.00273973,120]
[335104032,1723828040477,-151.0,0.00273973,120]
[335104033,1723828040498,-151.0,0.00273973,120]
[335104034,1723828040518,-151.0,0.00273973,120]
[335104035,1723828040539,-151.0,0.00273973,120]
[335104036,1723828040561,-151.0,0.00273973,120]
[335104037,1723828040582,-151.0,0.00273973,120]
[335104038,1723828040603,-151.0,0.00273973,120]
[335104039,1723828040624,-151.0,0.00273973,120]
[335104040,1723828040645,-223.416903,0.00273973,120]
[335104041,1723828040665,-151.0,0.00273973,120]
[335104042,1723828040686,-151.0,0.00273973,120]
[335104043,1723828040708,-70.78425329,0.00273973,120]
[335104044,1723828042104,-342.54706255,0.00012999,2]
[335104045,1723828042126,-413.45265018,0.00012999,2]
[335104046,1723828042148,-152.09392971,0.00273973,120]
[335104047,1723828042173,-124.68768926,0.00273973,120]
[335104048,1723828045137,-26.31231074,0.00273973,120]
[335104049,1723828045160,-151.0,0.00273973,120]
[335104050,1723828045180,-151.0,0.00273973,120]
[335104051,1723828045202,-151.0,0.00273973,120]
[335104052,1723828045224,-151.0,0.00273973,120]
[335104053,1723828045246,-151.0,0.00273973,120]
[335104054,1723828045268,-151.0,0.00273973,120]
[335104055,1723828045299,-151.0,0.00273973,120]
[335104056,1723828045321,-151.0,0.00273973,120]
[335104057,1723828045343,-176.834289,0.00273973,120]
[335104058,1723828045365,-151.0,0.00273973,120]
[335104059,1723828045390,-151.0,0.00273973,120]
[335104060,1723828045412,-151.0,0.00273973,120]
[335104061,1723828045433,-151.0,0.00273973,120]
[335104062,1723828045456,-151.0,0.00273973,120]
[335104063,1723828045478,-151.0,0.00273973,120]
[335104064,1723828045500,-151.0,0.00273973,120]
[335104065,1723828045521,-151.0,0.00273973,120]
[335104066,1723828045546,-151.0,0.00273973,120]
[335104067,1723828045566,-151.0,0.00273973,120]
[335104068,1723828045587,-151.0,0.00273973,120]
[335104069,1723828045608,-270.542956,0.00273973,120]
[335104070,1723828045631,-179.448288,0.00273973,120]
[335104071,1723828045653,-179.448288,0.00273973,120]
[335104072,1723828045674,-179.448288,0.00273973,120]
[335104073,1723828045696,-179.448288,0.00273973,120]
[335104074,1723828045719,-179.448288,0.00273973,120]
[335104075,1723828045740,-179.448288,0.00273973,120]
[335104076,1723828045762,-179.448288,0.00273973,120]
[335104077,1723828045786,-179.448288,0.00273973,120]
[335104078,1723828045811,-179.448288,0.00273973,120]
[335104079,1723828045831,-179.448288,0.00273973,120]
[335104080,1723828045853,-179.448288,0.00273973,120]
[335104081,1723828045873,-179.448288,0.00273973,120]
[335104082,1723828045895,-179.448288,0.00273973,120]
[335104083,1723828045916,-179.448288,0.00273973,120]
[335104084,1723828045938,-179.448288,0.00273973,120]
[335104085,1723828045958,-179.448288,0.00273973,120]
[335104086,1723828045980,-179.448288,0.00273973,120]
[335104087,1723828046000,-179.448288,0.00273973,120]
[335104088,1723828046020,-179.448288,0.00273973,120]
[335104089,1723828046044,-151.0,0.00273973,120]
[335104090,1723828046065,-151.0,0.00273973,120]
[335104091,1723828046087,-151.0,0.00273973,120]
[335104092,1723828046107,-151.0,0.00273973,120]
[335104093,1723828046128,-151.0,0.00273973,120]
[335104094,1723828046150,-151.0,0.00273973,120]
[335104095,1723828046172,-151.0,0.00273973,120]
[335104096,1723828046195,-151.0,0.00273973,120]
[335104097,1723828046215,-151.0,0.00273973,120]
[335104098,1723828046236,-151.0,0.00273973,120]
[335104099,1723828046258,-151.0,0.00273973,120]
[335104100,1723828046279,-151.0,0.00273973,120]
[335104101,1723828046305,-151.0,0.00273973,120]
[335104102,1723828046325,-151.0,0.00273973,120]
[335104103,1723828046347,-151.0,0.00273973,120]
[335104104,1723828046367,-151.0,0.00273973,120]
[335104105,1723828046389,-31.33552436,0.00273973,120]
[335104106,1723828046420,-119.66447564,0.00273973,120]
[335104107,1723828046443,-151.0,0.00273973,120]
[335104108,1723828046465,-151.0,0.00273973,120]
[335104109,1723828046487,-151.0,0.00273973,120]
[335104110,1723828046508,-151.0,0.00273973,120]
[335104111,1723828046530,-151.0,0.00273973,120]
[335104112,1723828046557,-151.0,0.00273973,120]
[335104113,1723828046580,-151.0,0.00273973,120]
[335104114,1723828046602,-151.0,0.00273973,120]
[335104115,1723828046626,-151.0,0.00273973,120]
[335104116,1723828046649,-151.0,0.00273973,120]
[335104117,1723828046672,-151.0,0.00273973,120]
[335104118,1723828046770,-151.0,0.00273973,120]
[335104119,1723828046798,-206.698422,0.00273973,120]
[335104120,1723828046820,-152.726601,0.00273973,120]
[335104121,1723828046841,-151.0,0.00273973,120]
[335104122,1723828046862,-162.833747,0.00273973,120]
[335104123,1723828046884,-414.896117,0.00273973,120]
[335104124,1723828046905,-414.896117,0.00273973,120]
[335104125,1723828046927,-414.896117,0.00273973,120]
[335104126,1723828046947,-414.896117,0.00273973,120]
[335104127,1723828046971,-414.896117,0.00273973,120]
[335104128,1723828046992,-414.896117,0.00273973,120]
[335104129,1723828047014,-414.896117,0.00273973,120]
[335104130,1723828047043,-414.896117,0.00273973,120]
[335104131,1723828047065,-414.896117,0.00273973,120]
[335104132,1723828047088,-414.896117,0.00273973,120]
[335104133,1723828047111,-414.896117,0.00273973,120]
[335104134,1723828047134,-414.896117,0.00273973,120]
[335104135,1723828047159,-414.896117,0.00273973,120]
[335104136,1723828047180,-414.896117,0.00273973,120]
[335104137,1723828047201,-414.896117,0.00273973,120]
[335104138,1723828047222,-414.896117,0.00273973,120]
[335104139,1723828047242,-414.896117,0.00273973,120]
[335104140,1723828047262,-414.896117,0.00273973,120]
[335104141,1723828047284,-414.896117,0.00273973,120]
[335104142,1723828047310,-414.896121,0.00273973,120]
[335104143,1723828047334,-669.632926,0.00273973,120]
[335104144,1723828047358,-669.632926,0.00273973,120]
[335104145,1723828047381,-669.632926,0.00273973,120]
[335104146,1723828047402,-669.632926,0.00273973,120]
[335104147,1723828047423,-669.632926,0.00273973,120]
[335104148,1723828047444,-669.632926,0.00273973,120]
[335104149,1723828047465,-669.632926,0.00273973,120]
[335104150,1723828047486,-669.632926,0.00273973,120]
[335104151,1723828047507,-669.632926,0.00273973,120]
[335104152,1723828047528,-669.632926,0.00273973,120]
[335104153,1723828047552,-669.632926,0.00273973,120]
[335104154,1723828047574,-669.632926,0.00273973,120]
[335104155,1723828047596,-669.632926,0.00273973,120]
[335104156,1723828047618,-669.632926,0.00273973,120]
[335104157,1723828047640,-669.632926,0.00273973,120]
[335104158,1723828047662,-669.632926,0.00273973,120]
[335104159,1723828047683,-669.632926,0.00273973,120]
[335104160,1723828047704,-669.632926,0.00273973,120]
[335104161,1723828047725,-669.632926,0.00273973,120]
[335104162,1723828047747,-669.63293,0.00273973,120]
[335104163,1723828047768,-251.457419,0.00273973,120]
[335104164,1723828047791,-251.457419,0.00273973,120]
[335104165,1723828047813,-251.457419,0.00273973,120]
[335104166,1723828047837,-251.457419,0.00273973,120]
[335104167,1723828047858,-251.457419,0.00273973,120]
[335104168,1723828047880,-251.457419,0.00273973,120]
[335104169,1723828047901,-251.457419,0.00273973,120]
[335104170,1723828047926,-251.457419,0.00273973,120]
[335104171,1723828047949,-251.457419,0.00273973,120]
[335104172,1723828047971,-251.457419,0.00273973,120]
[335104173,1723828047992,-251.457419,0.00273973,120]
[335104174,1723828048014,-251.457419,0.00273973,120]
[335104175,1723828048038,-251.457419,0.00273973,120]
[335104176,1723828048059,-251.457419,0.00273973,120]
[335104177,1723828048079,-251.457419,0.00273973,120]
[335104178,1723828048100,-251.457419,0.00273973,120]
[335104179,1723828048122,-251.457419,0.00273973,120]
[335104180,1723828048144,-251.457419,0.00273973,120]
[335104181,1723828048166,-151.0,0.00273973,120]
[335104182,1723828048187,-251.457419,0.00273973,120]
[335104183,1723828048209,-151.0,0.00273973,120]
[335104184,1723828048231,-151.0,0.00273973,120]
[335104185,1723828048253,-151.0,0.00273973,120]
[335104186,1723828048274,-151.0,0.00273973,120]
[335104187,1723828048297,-151.0,0.00273973,120]
[335104188,1723828048323,-151.0,0.00273973,120]
[335104189,1723828048346,-151.0,0.00273973,120]
[335104190,1723828048369,-151.0,0.00273973,120]
[335104191,1723828048393,-151.0,0.00273973,120]
[335104192,1723828048414,-273.527105,0.00273973,120]
[335104193,1723828048435,-1075.883765,0.00273973,120]
[335104194,1723828048456,-270.093593,0.00273973,120]
[335104195,1723828048479,-1075.883765,0.00273973,120]
[335104196,1723828048501,-270.093593,0.00273973,120]
[335104197,1723828048524,-1075.883765,0.00273973,120]
[335104198,1723828048546,-270.093593,0.00273973,120]
[335104199,1723828048568,-1075.883765,0.00273973,120]
[335104200,1723828048590,-270.093593,0.00273973,120]
[335104202,1723828048612,-1075.883765,0.00273973,120]
[335104204,1723828048633,-1075.883765,0.00273973,120]
[335104205,1723828048655,-270.093593,0.00273973,120]
[335104206,1723828048677,-270.093593,0.00273973,120]
[335104207,1723828048697,-1075.883765,0.00273973,120]
[335104208,1723828048719,-1075.883765,0.00273973,120]
[335104209,1723828048742,-270.093593,0.00273973,120]
[335104210,1723828048763,-1075.883765,0.00273973,120]
[335104211,1723828048786,-270.093593,0.00273973,120]
[335104212,1723828048806,-1075.883765,0.00273973,120]
[335104213,1723828048827,-270.093593,0.00273973,120]
[335104214,1723828048848,-1075.883765,0.00273973,120]
[335104215,1723828048869,-270.093593,0.00273973,120]
[335104216,1723828048890,-1075.883765,0.00273973,120]
[335104217,1723828048911,-270.093593,0.00273973,120]
[335104218,1723828048932,-270.093593,0.00273973,120]
[335104219,1723828048954,-1075.883765,0.00273973,120]
[335104220,1723828048975,-270.093593,0.00273973,120]
[335104221,1723828048996,-270.093593,0.00273973,120]
[335104222,1723828049020,-1075.883765,0.00273973,120]
[335104223,1723828049042,-1075.883765,0.00273973,120]
[335104224,1723828049066,-270.093593,0.00273973,120]
[335104225,1723828049088,-1075.883765,0.00273973,120]
[335104226,1723828049111,-270.093593,0.00273973,120]
[335104227,1723828049133,-1075.883765,0.00273973,120]
[335104228,1723828049155,-270.093593,0.00273973,120]
[335104229,1723828049176,-270.093593,0.00273973,120]
[335104230,1723828049197,-1075.883765,0.00273973,120]
[335104231,1723828049313,-270.093593,0.00273973,120]
[335104232,1723828049341,-1075.883765,0.00273973,120]
[335104233,1723828049364,-1075.883765,0.00273973,120]
[335104234,1723828049387,-151.0,0.00273973,120]
[335104235,1723828049410,-151.0,0.00273973,120]
[335104236,1723828049432,-151.0,0.00273973,120]
[335104237,1723828049454,-151.0,0.00273973,120]
[335104238,1723828049476,-4414.677,0.00360468,120]
[335104239,1723828049497,-3000.0,0.0038,120]
[335104240,1723828049518,-2000.0,0.0049,120]
[335104241,1723828049542,-8885.47023442,0.00547935,120]
[335104242,1723828049564,-298.01035596,0.00547945,120]
[335104243,1723828049586,-499.0,0.00547945,120]
[335104244,1723828049607,-677.33,0.00547945,120]
[335104245,1723828049632,-677.33,0.00547945,120]
[335104246,1723828049654,-677.33,0.00547945,120]
[335104247,1723828049676,-677.33,0.00547945,120]
[335104248,1723828049698,-677.33,0.00547945,120]
[335104249,1723828049720,-500.0,0.00547945,120]
[335104250,1723828049743,-500.0,0.00547945,120]
[335104251,1723828049764,-500.0,0.00547945,120]
[335104252,1723828049785,-500.0,0.00547945,120]
[335104253,1723828049814,-500.0,0.00547945,120]
[335104254,1723828049834,-500.0,0.00547945,120]
[335104255,1723828049856,-500.0,0.00547945,120]
[335104256,1723828049877,-500.0,0.00547945,120]
[335104257,1723828049898,-1475.41,0.00547945,120]
[335104258,1723828049920,-1475.41,0.00547945,120]
[335104259,1723828049942,-1475.41,0.00547945,120]
[335104260,1723828049963,-2120.18,0.00547945,120]
[335104261,1723828049984,-2120.18,0.00547945,120]
[335104262,1723828050006,-2120.18,0.00547945,120]
[335104263,1723828050026,-500.0,0.00547945,120]
[335104264,1723828050050,-500.0,0.00547945,120]
[335104265,1723828050071,-500.0,0.00547945,120]
[335104266,1723828050093,-1921.54,0.00547945,120]
[335104267,1723828050114,-1921.54,0.00547945,120]
[335104268,1723828050136,-1921.54,0.00547945,120]
[335104269,1723828050158,-3000.0,0.0056,120]
[335104270,1723828050180,-850.43417491,0.00664163,120]
[335104271,1723828050238,-2007.28582509,0.00664163,120]
[335104272,1723828050260,-677.33,0.00689999,120]
[335104273,1723828050281,-500.0,0.00689999,120]
[335104274,1723828050303,-2000.0,0.0069,120]
[335104275,1723828050326,-747.84929218,0.007,90]
[335104276,1723828052102,-1252.15070782,0.007,90]
[335104277,1723828052124,-4701.83483835,0.0073,28]
[335104278,1723828054104,-12525.8135949,0.0073,28]
[335104279,1723828145084,-237.77755578,0.00015757,2]
[335104280,1723828145104,-345.25145769,0.00015757,2]
[335104288,1723828218221,-12681.0364325,0.00031,15]
[335104289,1723828218249,-150.0,0.00062,120]
[335104290,1723828218277,-150.0,0.00063,120]
[335104291,1723828218303,-200.0,0.00064,120]
[335104324,1723828232109,-261.133295,0.00273973,30]
[335104326,1723828232119,-261.133295,0.00273973,30]
[335104328,1723828232128,-261.133295,0.00273973,30]
[335104330,1723828232137,-261.133295,0.00273973,30]
[335104332,1723828232146,-261.133295,0.00273973,30]
[335104334,1723828232155,-261.133295,0.00273973,30]
[335104336,1723828232168,-261.133295,0.00273973,30]
[335104338,1723828232177,-261.133295,0.00273973,30]
[335104340,1723828232187,-261.133295,0.00273973,30]
[335104342,1723828232196,-261.133295,0.00273973,30]
[335104344,1723828232205,-261.133295,0.00273973,30]
[335104346,1723828232215,-261.133295,0.00273973,30]
[335104348,1723828232224,-261.133295,0.00273973,30]
[335104350,1723828232233,-261.133295,0.00273973,30]
[335104351,1723828232242,-261.133295,0.00273973,30]
[335104353,1723828232251,-261.133295,0.00273973,30]
[335104355,1723828232260,-261.133295,0.00273973,30]
[335104357,1723828232270,-261.133295,0.00273973,30]
[335104358,1723828232279,-261.133295,0.00273973,30]
[335104359,1723828232288,-261.133295,0.00273973,30]
[335104360,1723828232297,-270.093589,0.00273973,120]
[335104361,1723828232306,-387.90623887,0.0054,120]
[335104362,1723828232326,-308.230362,0.0054,120]
[335104363,1723828232816,-1022.17139468,0.0054,120]
[335104369,1723828238013,-281.69200445,0.0054,120]
[335104370,1723828238023,-500.0,0.00547943,120]
[335104371,1723828238034,-500.0,0.00547943,120]
[335104372,1723828238044,-500.0,0.00547943,120]
[335104373,1723828238054,-500.0,0.00547943,120]
[335104374,1723828238064,-500.0,0.00547943,120]
[335104375,1723828238074,-500.0,0.00547943,120]
[335104376,1723828238084,-500.0,0.00547943,120]
[335104377,1723828238094,-500.0,0.00547943,120]
[335104378,1723828238104,-500.0,0.00547943,120]
[335104379,1723828238114,-500.0,0.00547943,120]
[335104380,1723828238124,-500.0,0.00547943,120]
[335104381,1723828238134,-500.0,0.00547943,120]
[335104382,1723828238143,-500.0,0.00547943,120]
[335104383,1723828238153,-500.0,0.00547943,120]
[335104384,1723828238162,-500.0,0.00547943,120]
[335104385,1723828238172,-500.0,0.00547943,120]
[335104386,1723828238183,-500.0,0.00547943,120]
[335104387,1723828238193,-500.0,0.00547943,120]
[335104388,1723828238203,-500.0,0.00547943,120]
[335104389,1723828238213,-500.0,0.00547943,120]
[335104390,1723828238225,-500.0,0.00547943,120]
[335104391,1723828238234,-500.0,0.00547943,120]
[335104392,1723828238244,-500.0,0.00547943,120]
[335104393,1723828238253,-500.0,0.00547943,120]
[335104394,1723828238262,-500.0,0.00547943,120]
[335104395,1723828238271,-500.0,0.00547943,120]
[335104396,1723828238280,-500.0,0.00547943,120]
[335104397,1723828238291,-500.0,0.00547943,120]
[335104398,1723828238301,-500.0,0.00547943,120]
[335104399,1723828238311,-500.0,0.00547943,120]
[335104400,1723828238321,-500.0,0.00547943,120]
[335104401,1723828238330,-500.0,0.00547943,120]
[335104402,1723828238340,-500.0,0.00547943,120]
[335104403,1723828238350,-500.0,0.00547943,120]
[335104404,1723828238360,-348.366955,0.00547943,120]
[335104405,1723828238370,-500.0,0.00547943,120]
[335104406,1723828238384,-500.0,0.00547943,120]
[335104407,1723828238394,-500.0,0.00547943,120]
[335104408,1723828238404,-500.0,0.00547943,120]
[335104409,1723828238413,-500.0,0.00547943,120]
[335104410,1723828238425,-500.0,0.00547943,120]
[335104411,1723828238435,-500.0,0.00547943,120]
[335104412,1723828238445,-500.0,0.00547943,120]
[335104413,1723828238457,-500.0,0.00547943,120]
[335104414,1723828238469,-500.0,0.00547943,120]
[335104415,1723828238479,-500.0,0.00547943,120]
[335104416,1723828238489,-500.0,0.00547943,120]
[335104417,1723828238498,-500.0,0.00547943,120]
[335104418,1723828238508,-2738.65,0.00547945,120]
[335104419,1723828238518,-2738.65,0.00547945,120]
[335104420,1723828238529,-2738.65,0.00547945,120]
[335104421,1723828238540,-1290.99,0.00547945,120]
[335104422,1723828238550,-1290.99,0.00547945,120]
[335104423,1723828238569,-1290.99,0.00547945,120]
[335104424,1723828238581,-1290.99,0.00547945,120]
[335104425,1723828238591,-1855.16,0.00547945,120]
[335104426,1723828238601,-1855.16,0.00547945,120]
[335104427,1723828238612,-1855.16,0.00547945,120]
[335104428,1723828238622,-1855.16,0.00547945,120]
[335104429,1723828238631,-500.0,0.00547945,120]
[335104430,1723828238642,-1681.35,0.00547945,120]
[335104431,1723828238651,-1681.35,0.00547945,120]
[335104432,1723828238661,-1681.35,0.00547945,120]
[335104433,1723828238671,-1681.35,0.00547945,120]
[335104434,1723828238681,-2169.95156001,0.0065,120]
[335104435,1723828238692,-2000.0,0.0068,120]
[335104436,1723828238701,-2000.0,0.007,120]
[335104437,1723828238711,-2000.0,0.0072,120]
[335104438,1723828238725,-2844.99,0.0072,120]
[335104439,1723828238735,-3000.0,0.0077,120]
[335104440,1723828238744,-34999.9,0.007777,120]
[335104441,1723828238754,-534.08992964,0.0078883,120]
[335104442,1723828238764,-500.0,0.0078903,120]
[335104443,1723828238773,-2738.65,0.0078903,120]
[335104444,1723828238783,-500.0,0.0078904,120]
[335104445,1723828238793,-2738.65,0.0078904,120]
[335104446,1723828238802,-2000.0,0.008,90]
[335104447,1723828238812,-2073.66305048,0.00869134,120]
[335104448,1723828238822,-2073.66305048,0.00869202,120]
[335104449,1723828238832,-2073.66305048,0.0086925,120]
[335104450,1723828238842,-1000.0,0.009,120]
[335104451,1723828238852,-420.0,0.009,120]
[335104452,1723828238862,-12868.0,0.00933,120]
[335104453,1723828238873,-1290.99,0.00989888,120]
[335104454,1723828238883,-1855.16,0.00989888,120]
[335104455,1723828238892,-1681.35,0.00989888,120]
[335104456,1723828238901,-677.33,0.00989889,120]
[335104457,1723828238911,-500.0,0.00989889,120]
[335104458,1723828238921,-677.33,0.00989899,120]
[335104459,1723828238930,-677.33,0.00989899,120]
[335104460,1723828238940,-677.33,0.00989899,120]
[335104461,1723828238950,-677.33,0.00989899,120]
[335104462,1723828238960,-677.33,0.00989899,120]
[335104463,1723828239059,-500.0,0.00989899,120]
[335104464,1723828239069,-500.0,0.00989899,120]
[335104465,1723828239078,-500.0,0.00989899,120]
[335104466,1723828239088,-645.99301145,0.00989899,120]
[335104467,1723828239097,-988.1657047,0.009899,120]
[335104468,1723828239106,-166.91,0.01,120]
[335104469,1723828239116,-151.0,0.01,120]
[335104470,1723828239126,-1000.0,0.0125,120]
[335104471,1723828239135,-300.0,0.014,120]
[335104472,1723828239145,-997.0,0.015,120]
[335104473,1723828239154,-300.0,0.01569231,120]
[335104474,1723828239164,-1000.0,0.0165,120]
[335104475,1723828239173,-300.0,0.01738462,120]
[335104476,1723828239183,-1000.0,0.0185,120]
[335104477,1723828239192,-500.0,0.01899999,120]
[335104478,1723828239202,-1000.0,0.019,120]
[335104479,1723828239211,-300.0,0.01907692,120]
[335104480,1723828239223,-677.33,0.01932999,120]
[335104481,1723828239233,-564.0,0.01933,120]
[335104482,1723828239242,-599.87973996,0.01992064,28]
[335104483,1723828239251,-7082.554,0.02,120]
[335104484,1723828239261,-1000.0,0.0205,120]
[335104485,1723828239270,-300.0,0.02076923,120]
[335104486,1723828239280,-534.08992964,0.02084098,120]
[335104487,1723828239289,-1349.3,0.022135,72]
[335104488,1723828239299,-155.0,0.02222,120]
[335104489,1723828239309,-300.0,0.02246154,120]
[335104490,1723828239319,-1000.0,0.0225,120]
[335104491,1723828239329,-2738.65,0.02299312,120]
[335104492,1723828239339,-1638.4,0.023762,109]
[335104493,1723828239349,-300.0,0.02415385,120]
[335104494,1723828239359,-1000.0,0.0245,120]
[335104495,1723828239372,-4147.32610107,0.02467247,120]
[335104496,1723828239382,-4147.32610107,0.02471938,120]
[335104497,1723828239395,-927.54,0.02499999,120]
[335104498,1723828239404,-500.0,0.02499999,120]
[335104499,1723828239414,-10000.0,0.0258,120]
[335104500,1723828239424,-300.0,0.02584615,120]
[335104501,1723828239433,-599.87973996,0.02593631,28]
[335104502,1723828239444,-1000.0,0.0265,120]
[335104503,1723828239454,-10000.0,0.0268,120]
[335104504,1723828239464,-300.0,0.02753846,120]
[335104505,1723828239476,-10000.0,0.0278,120]
[335104506,1723828239486,-1000.0,0.0285,120]
[335104507,1723828239495,-10000.0,0.0288,120]
[335104508,1723828239505,-1290.99,0.02888789,120]
[335104509,1723828239514,-1855.16,0.02888789,120]
[335104510,1723828239524,-1681.35,0.02888789,120]
[335104511,1723828239533,-500.0,0.02888799,120]
[335104512,1723828239543,-1000.0,0.029,120]
[335104513,1723828239553,-300.0,0.02923077,120]
[335104514,1723828239562,-1290.99,0.02932998,120]
[335104516,1723828239571,-1855.16,0.02932998,120]
[335104518,1723828239582,-1681.35,0.02932998,120]
[335104520,1723828239592,-10000.0,0.0298,120]
[335104521,1723828239602,-4549.01373868,0.03,7]
[335104523,1723828239611,-1000.0,0.03,90]
[335104525,1723828239621,-155.0,0.03,120]
[335104526,1723828239631,-201.57137716,0.03,2]
[335104527,1723828239641,-7849.0,0.03,120]
[335104528,1723828239651,-1000.0,0.0305,120]
[335104529,1723828239661,-10000.0,0.0308,120]
[335104530,1723828239671,-300.0,0.03092308,120]
[335104531,1723828239681,-10000.0,0.0318,120]
[335104532,1723828239691,-599.87973996,0.03195199,28]
[335104533,1723828239701,-1000.0,0.0325,120]
[335104534,1723828239711,-300.0,0.03261538,120]
[335104535,1723828239723,-10000.0,0.0328,120]
[335104536,1723828239733,-155.0,0.03333,120]
[335104538,1723828239742,-2000.0,0.0334,120]
[335104539,1723828239752,-2000.0,0.0334,120]
[335104540,1723828239762,-534.08992964,0.03379365,120]
[335104541,1723828239772,-10000.0,0.0338,120]
[335104542,1723828239782,-300.0,0.03430769,120]
[335104543,1723828239792,-1000.0,0.0345,120]
[335104544,1723828239802,-10000.0,0.0348,120]
[335104545,1723828239813,-10000.0,0.0358,120]
[335104546,1723828239823,-300.0,0.036,120]
[335104547,1723828239833,-1000.0,0.0365,120]
[335104548,1723828239843,-10000.0,0.0368,120]
[335104549,1723828239853,-3201.051132,0.03727217,63]
[335104551,1723828239863,-300.0,0.03769231,120]
[335104553,1723828239873,-10000.0,0.0378,120]
[335104554,1723828239882,-599.87973996,0.03796766,28]
[335104555,1723828239892,-1000.0,0.0385,120]
[335104556,1723828239902,-10000.0,0.0388,120]
[335104557,1723828239912,-2738.65,0.03888799,120]
[335104558,1723828239921,-927.54,0.03899999,120]
[335104559,1723828239931,-500.0,0.03899999,120]
[335104560,1723828239941,-997.0,0.039,120]
[335104561,1723828239951,-1951.9,0.039,111]
[335104562,1723828239961,-1951.9,0.039,111]
[335104563,1723828239971,-300.0,0.03938462,120]
[335104564,1723828239981,-10000.0,0.0398,120]
[335104565,1723828239991,-2740.00000001,0.0399,120]
[335104566,1723828240001,-3880.0,0.0399,120]
[335104567,1723828240010,-155.0,0.04,120]
[335104568,1723828240019,-150.0,0.04,120]
[335104569,1723828240029,-1352.9,0.04027,116]
[335104570,1723828240039,-1352.9,0.04027,116]
[335104571,1723828240049,-1000.0,0.0405,120]
[335104572,1723828240058,-10000.0,0.0408,120]
[335104573,1723828240068,-29511.36490794,0.040999,120]
[335104574,1723828240077,-150.0,0.041,120]